fUST/lending_fUST_20250918
["ID","MTS","AMOUNT","RATE_DAILY","PERIOD"]
[385967922,1758162639566,-301.97941524,0.00025,2]
[385967923,1758162639575,-417.15472785,0.00025,10]
[385967924,1758162639585,-417.15472785,0.00025,10]
[385967925,1758162639594,-283.98474371,0.00025008,2]
[385967926,1758162639603,-203.54496452,0.00025008,2]
[385967927,1758162639613,-26535.2360014,0.00025009,2]
[385967935,1758162640525,-480.0,0.00024797,3]
[385967936,1758162640535,-272.72382974,0.00024941,2]
[385967942,1758162646538,-1921.55541493,0.00024941,2]
[385967943,1758162646547,-3278.22425617,0.00025009,2]
[385967944,1758162646559,-9448.02284316,0.00025009,2]
[385967945,1758162646643,-476.52801883,0.00025009,2]
[385967946,1758162646654,-35548.12208757,0.00025009,2]
[385967950,1758162666967,150.0,0.00021371,2]
[385967951,1758162696493,247.48,0.0002316,2]
[385967952,1758162733696,206.82919266,0.000218,2]
[385967953,1758162751430,150.0,0.00021531,2]
[385967954,1758162825916,1000.0,0.00028,30]
[385967955,1758162832693,150.0,0.00021436,2]
[385967958,1758162916813,150.0,0.00021623,2]
[385967959,1758162920264,206.82919266,0.000218,2]
[385967960,1758162997970,150.0,0.00021417,2]
[385967961,1758163000893,8198.51814621,0.00028,30]
[385967962,1758163079468,150.0,0.00021268,2]
[385967963,1758163101598,206.38336454,0.000218,2]
[385967964,1758163158708,150.0,0.00021266,2]
[385967966,1758163239954,150.0,0.00021305,2]
[385967967,1758163245049,157.128938,0.0002744,30]
[385967971,1758163287190,210.2797851,0.000218,2]
[385967972,1758163324651,150.0,0.00021459,2]
[385967973,1758163405381,150.0,0.0002149,2]
[385967975,1758163468644,210.27978503,0.000218,2]
[385967976,1758163487208,150.0,0.00021462,2]
[385967977,1758163568721,150.0,0.00021322,2]
[385967978,1758163646279,210.27978503,0.000218,2]
[385967979,1758163653520,150.0,0.00021351,2]
[385967981,1758163734314,150.0,0.00021348,2]
[385967987,1758163814250,150.0,0.00021461,2]
[385968385,1758163827557,208.68583239,0.000218,2]
[385968585,1758163832754,-288.37288794,0.000233,2]
[385968586,1758163832763,-137.80711206,0.00023412,2]
[385968850,1758163840588,-14.92288794,0.00023412,2]
[385968851,1758163840598,-308.5524636,0.00023663,2]
[385968853,1758163840607,-423.0994922,0.00023917,2]
[385968854,1758163840617,-112.17300652,0.00024044,3]
[385968856,1758163840641,-47.82699348,0.00024044,3]
[385968858,1758163840650,-160.0,0.00024525,4]
[385968859,1758163840660,-403.92519551,0.00024673,2]
[385968860,1758163840669,-2081.71343221,0.00024673,2]
[385968862,1758163840678,-403.92519551,0.0002473,2]
[385968863,1758163840688,-410.0,0.00024731,2]
[385968865,1758163840697,-392.96,0.00024743,3]
[385968866,1758163840707,-1200.0,0.00024747,2]
[385968867,1758163840716,-300.0,0.00024748,2]
[385968869,1758163840725,-300.0,0.00024748,2]
[385968870,1758163840735,-300.0,0.00024748,2]
[385968871,1758163840745,-300.0,0.00024748,2]
[385968873,1758163840754,-300.0,0.00024748,2]
[385968874,1758163840763,-480.0,0.00024751,3]
[385968876,1758163840772,-172.70460718,0.00024751,3]
[385968877,1758163840781,-306.39767941,0.00024752,2]
[385968878,1758163840790,-570.75863885,0.00024752,2]
[385968880,1758163840800,-250.93480568,0.00024752,2]
[385968881,1758163840810,-500.0,0.00024752,2]
[385968883,1758163840820,-500.0,0.00024752,2]
[385968884,1758163840829,-203.39588319,0.00024752,2]
[385968885,1758163840839,-480.0,0.00024752,3]
[385968887,1758163840849,-480.0,0.00024752,3]
[385968888,1758163840859,-501.50193611,0.00024752,3]
[385968889,1758163840868,-480.0,0.00024752,3]
[385968891,1758163840878,-495.14771699,0.00024752,3]
[385968892,1758163840889,-150.0,0.00024752,2]
[385968894,1758163840898,-533.22,0.00024752,3]
[385968895,1758163840908,-480.0,0.00024752,3]
[385968896,1758163840918,-538.39,0.00024752,3]
[385968898,1758163840928,-500.9198203,0.00024752,3]
[385968899,1758163840938,-480.0,0.00024752,3]
[385968901,1758163840947,-190.84681513,0.00024752,3]
[385968902,1758163840956,-279.94576685,0.00024752,3]
[385968903,1758163840965,-480.71289558,0.00024752,3]
[385968905,1758163840976,-480.0,0.00024752,3]
[385968906,1758163840988,-544.20577257,0.00024752,3]
[385968908,1758163840997,-480.98427332,0.00024752,3]
[385968909,1758163841009,-485.0,0.00024752,3]
[385968910,1758163841019,-535.20695461,0.00024752,3]
[385968912,1758163841028,-1563.7,0.00024752,3]
[385968913,1758163841037,-480.0,0.00024752,3]
[385968915,1758163841046,-480.0,0.00024752,3]
[385968916,1758163841056,-480.0,0.00024752,3]
[385968917,1758163841065,-480.0,0.00024752,3]
[385968919,1758163841075,-480.0,0.00024752,3]
[385968920,1758163841084,-1891.16,0.00024752,2]
[385968922,1758163841096,-501.32366361,0.00024752,3]
[385968923,1758163841105,-480.0,0.00024752,3]
[385968924,1758163841114,-480.0,0.00024752,3]
[385968926,1758163841124,-124231.8969332,0.00024753,2]
[385968927,1758163841136,-165725.26925135,0.00024753,2]
[385968952,1758163843156,157.128939,0.0002744,30]
[385969741,1758163894983,150.0,0.00021671,2]
[385969742,1758163978398,150.0,0.00021471,2]
[385969743,1758164003203,209.67930005,0.000218,2]
[385969744,1758164058916,150.0,0.00021551,2]
[385969745,1758164143683,150.0,0.0002132,2]
[385969746,1758164190299,203.71280619,0.000218,2]
[385969747,1758164225595,150.0,0.0002132,2]
[385969748,1758164304850,150.0,0.00021502,2]
[385969750,1758164376888,202.44524759,0.000218,2]
[385969751,1758164385040,150.0,0.00021477,2]
[385969752,1758164464394,150.0,0.00021475,2]
[385969753,1758164545491,150.0,0.00021501,2]
[385969754,1758164561002,201.59104276,0.000218,2]
[385969755,1758164590203,253.85969532,0.0002304,2]
[385969756,1758164624338,150.0,0.00021405,2]
[385969757,1758164701937,150.0,0.00021405,2]
[385969759,1758164744401,201.65633047,0.000218,2]
[385969760,1758164779483,150.48944055,0.00028,30]
[385969761,1758164780593,150.0,0.00021319,2]
[385969763,1758164858064,150.0,0.00021461,2]
[385969765,1758164926373,244.26491517,0.000218,2]
[385969766,1758164936319,150.0,0.0002147,2]
[385969768,1758165011774,150.0,0.00021547,2]
[385969784,1758165031888,-150.0,0.00023505,2]
[385969785,1758165031899,-184.340337,0.00023718,2]
[385969786,1758165031908,-1042.6509866,0.00023752,2]
[385969787,1758165031918,-330.28049237,0.00024258,2]
[385969788,1758165031927,-410.0,0.00024545,2]
[385969789,1758165031938,-474.80035372,0.00024636,2]
[385969790,1758165031948,-151.0,0.00024721,2]
[385969791,1758165031958,-151.0,0.00024721,2]
[385969792,1758165031968,-151.0,0.00024721,2]
[385969793,1758165031978,-151.0,0.00024721,2]
[385969794,1758165031988,-151.0,0.00024721,2]
[385969795,1758165031997,-175.59106063,0.00024721,2]
[385969796,1758165032007,-500.0,0.00024721,2]
[385969797,1758165032019,-500.0,0.00024721,2]
[385969798,1758165032029,-500.0,0.00024721,2]
[385969799,1758165032039,-500.0,0.00024721,2]
[385969800,1758165032048,-151.0,0.00024721,2]
[385969801,1758165032058,-500.0,0.00024721,2]
[385969802,1758165032067,-151.0,0.00024721,2]
[385969803,1758165032076,-500.0,0.00024721,2]
[385969804,1758165032086,-500.0,0.00024721,2]
[385969805,1758165032095,-151.0,0.00024721,2]
[385969806,1758165032104,-500.0,0.00024721,2]
[385969807,1758165032113,-500.0,0.00024721,2]
[385969808,1758165032122,-153.13209788,0.00024721,2]
[385969809,1758165032132,-500.0,0.00024721,2]
[385969810,1758165032141,-515.6138429,0.00024721,2]
[385969811,1758165032151,-500.0,0.00024721,2]
[385969812,1758165032161,-500.0,0.00024721,2]
[385969813,1758165032170,-500.0,0.00024721,2]
[385969814,1758165032179,-184.80025285,0.00024721,2]
[385969815,1758165032189,-500.0,0.00024721,2]
[385969816,1758165032198,-151.0,0.00024721,2]
[385969817,1758165032208,-151.0,0.00024721,2]
[385969818,1758165032218,-151.0,0.00024721,2]
[385969819,1758165032228,-151.0,0.00024721,2]
[385969820,1758165032239,-151.0,0.00024721,2]
[385969821,1758165032248,-153.78248679,0.00024721,2]
[385969822,1758165032258,-155.80580807,0.00024721,2]
[385969823,1758165032268,-150.0,0.00024731,2]
[385969824,1758165032278,-1200.0,0.00024734,2]
[385969825,1758165032288,-300.0,0.00024734,2]
[385969826,1758165032298,-1200.0,0.00024734,2]
[385969827,1758165032308,-500.63191286,0.00024735,3]
[385969828,1758165032318,-511.0,0.00024735,3]
[385969829,1758165032328,-480.0,0.00024735,3]
[385969830,1758165032338,-467.95766846,0.00024735,3]
[385969831,1758165032347,-480.0,0.00024735,3]
[385969832,1758165032357,-480.0,0.00024735,3]
[385969833,1758165032367,-14576.11390775,0.00024735,2]
[385969834,1758165032377,-1000.0,0.00024736,2]
[385969835,1758165032387,-1000.0,0.00024736,2]
[385969836,1758165032397,-1000.0,0.00024736,2]
[385969837,1758165032406,-1000.0,0.00024736,2]
[385969838,1758165032416,-1000.0,0.00024736,2]
[385969839,1758165032425,-1000.0,0.00024736,2]
[385969840,1758165032435,-377.90159136,0.00024736,2]
[385969841,1758165032450,-622.09840864,0.00024736,2]
[385969842,1758165032459,-530.30976381,0.00024736,2]
[385969843,1758165032471,-469.69023619,0.00024736,2]
[385969844,1758165032480,-30.30976381,0.00024736,2]
[385969850,1758165040858,-1000.0,0.00024721,2]
[385969851,1758165040869,-1000.0,0.00024721,2]
[385969852,1758165040878,-1000.0,0.00024721,2]
[385969853,1758165040888,-1000.0,0.00024721,2]
[385969854,1758165040899,-1000.0,0.00024721,2]
[385969855,1758165040911,-1137.16100042,0.00024721,2]
[385969856,1758165040923,-173.0,0.00024731,2]
[385969857,1758165040936,-500.0,0.00024747,2]
[385969858,1758165040950,-637.74832672,0.00024747,2]
[385969859,1758165040961,-207.75697456,0.00024747,2]
[385969860,1758165040973,-500.0,0.00024747,2]
[385969861,1758165040984,-500.0,0.00024747,2]
[385969862,1758165040994,-500.0,0.00024747,2]
[385969863,1758165041005,-500.0,0.00024747,2]
[385969864,1758165041015,-500.0,0.00024747,2]
[385969865,1758165041028,-378.2152781,0.00024747,2]
[385969866,1758165041039,-500.0,0.00024747,2]
[385969867,1758165041049,-500.0,0.00024747,2]
[385969868,1758165041062,-500.0,0.00024747,2]
[385969869,1758165041073,-250.0,0.00024747,2]
[385969870,1758165041083,-160.0,0.00024749,2]
[385969871,1758165041094,-480.0,0.0002475,3]
[385969872,1758165041106,-480.0,0.0002475,3]
[385969873,1758165041117,-480.0,0.0002475,3]
[385969874,1758165041128,-480.0,0.0002475,3]
[385969875,1758165041139,-481.73651041,0.0002475,2]
[385969876,1758165041150,-515.96,0.0002475,3]
[385969877,1758165041160,-480.0,0.0002475,3]
[385969878,1758165041172,-480.0,0.0002475,3]
[385969879,1758165041183,-480.0,0.0002475,3]
[385969880,1758165041196,-200.0,0.0002475,3]
[385969881,1758165041208,-518.26274472,0.0002475,3]
[385969882,1758165041219,-480.0,0.00024751,3]
[385969883,1758165041230,-3479.92,0.00024751,3]
[385969884,1758165041240,-1578.55,0.00024751,3]
[385969885,1758165041250,-278.73069211,0.00024751,3]
[385969886,1758165041261,-480.0,0.00024751,3]
[385969887,1758165041272,-480.0,0.00024751,3]
[385969888,1758165041285,-290.49367282,0.00024752,3]
[385969889,1758165041295,-559.07752475,0.00024752,3]
[385969890,1758165041306,-486.51070515,0.00024752,3]
[385969891,1758165041316,-512.23,0.00024752,3]
[385969892,1758165041327,-500.0,0.00024773,2]
[385969893,1758165041339,-500.0,0.00024773,2]
[385969894,1758165041351,-501.36867589,0.00024773,2]
[385969895,1758165041362,-500.0,0.00024773,2]
[385969896,1758165041372,-500.0,0.00024773,2]
[385969897,1758165041382,-215.4650548,0.00024799,2]
[385969898,1758165041394,-151.0,0.00024799,2]
[385969899,1758165041404,-151.0,0.00024799,2]
[385969900,1758165041414,-500.0,0.00024799,2]
[385969901,1758165041424,-233.39271932,0.00024851,2]
[385969902,1758165041434,-160.0,0.00024851,2]
[385969903,1758165041446,-847.96496735,0.00024851,2]
[385969904,1758165041457,-202.18897477,0.00024868,2]
[385969905,1758165041468,-1837.0,0.0002487,2]
[385969907,1758165041478,-242.35511733,0.00024926,2]
[385969910,1758165041489,-242.3551173,0.00024994,2]
[385969912,1758165041499,-417.15472785,0.00025,10]
[385969914,1758165041510,-160.0,0.00025007,5]
[385969916,1758165041521,-511.0,0.00025009,3]
[385969918,1758165041531,-480.0,0.00025009,3]
[385969919,1758165041544,-454.67195717,0.00025009,3]
[385969920,1758165041555,-480.0,0.00025009,3]
[385969921,1758165041566,-516.49817495,0.00025024,3]
[385969922,1758165041577,-397.56213158,0.00025024,3]
[385969923,1758165041588,-480.0,0.00025024,3]
[385969924,1758165041600,-486.50330121,0.00025024,3]
[385969926,1758165041611,-515.96,0.00025024,3]
[385969927,1758165041622,-480.0,0.00025024,3]
[385969928,1758165041634,-480.0,0.00025024,3]
[385969929,1758165041646,-480.0,0.00025024,3]
[385969932,1758165041657,-200.0,0.00025024,3]
[385969934,1758165041668,-569.21296106,0.00025025,3]
[385969936,1758165041679,-3479.92,0.00025025,3]
[385969938,1758165041689,-1578.55,0.00025025,3]
[385969940,1758165041700,-261.16963513,0.00025025,3]
[385969942,1758165041715,-480.0,0.00025025,3]
[385969944,1758165041725,-242.3551173,0.00025062,2]
[385969946,1758165041734,-151.0,0.00025073,2]
[385969948,1758165041745,-151.0,0.00025073,2]
[385969950,1758165041756,-500.0,0.00025073,2]
[385969952,1758165041766,-1387.8089548,0.00025073,2]
[385969954,1758165041776,-242.3551173,0.0002513,2]
[385969956,1758165041789,-160.0,0.00025154,2]
[385969959,1758165041800,-160.0,0.00025154,2]
[385969961,1758165041812,-214.47837558,0.00025169,2]
[385969963,1758165041823,-234262.782072,0.0002517,2]
[385969965,1758165041835,-255.96540469,0.00025173,2]
[385969967,1758165041845,-505.29701999,0.00025173,2]
[385969969,1758165041855,-504.07048835,0.00025173,2]
[385969971,1758165041864,-500.0,0.00025173,2]
[385969973,1758165041875,-500.0,0.00025173,2]
[385969975,1758165041886,-500.0,0.00025173,2]
[385969978,1758165041896,-500.0,0.00025173,2]
[385969980,1758165041906,-150.40774745,0.00025173,2]
[385969981,1758165041916,-504.24328731,0.00025173,2]
[385969983,1758165041927,-500.0,0.00025173,2]
[385969984,1758165041938,-500.68639002,0.00025173,2]
[385969986,1758165041949,-365.77221023,0.00025173,2]
[385969988,1758165041959,-505.43493923,0.00025173,2]
[385969990,1758165041969,-500.0,0.00025173,2]
[385969991,1758165041979,-500.0,0.00025173,2]
[385969992,1758165041988,-301.63747365,0.00025174,2]
[385969993,1758165041998,-150.0,0.0002518,2]
[385969994,1758165042008,-1812.36,0.0002518,2]
[385969995,1758165042018,-1000.0,0.0002519,2]
[385969996,1758165042035,-1000.0,0.0002519,2]
[385969997,1758165042049,-1000.0,0.0002519,2]
[385969998,1758165042060,-1000.0,0.0002519,2]
[385969999,1758165042072,-1000.0,0.0002519,2]
[385970000,1758165042083,-1000.0,0.0002519,2]
[385970001,1758165042094,-1021.014317,0.0002519,2]
[385970002,1758165042106,-33754.03010358,0.0002519,2]
[385970003,1758165042116,-242.3551173,0.00025198,2]
[385970004,1758165042130,-500.0,0.00025273,2]
[385970005,1758165042142,-500.0,0.00025273,2]
[385970006,1758165042153,-158.72264056,0.00025273,2]
[385970007,1758165042165,-500.0,0.00025273,2]
[385970008,1758165042176,-500.0,0.00025273,2]
[385970009,1758165042188,-511.0,0.00025283,3]
[385970010,1758165042200,-448.62538718,0.00025283,3]
[385970011,1758165042212,-480.0,0.00025283,3]
[385970012,1758165042223,-112830.77196644,0.00025289,2]
[385970026,1758165088780,150.0,0.00021514,2]
[385970027,1758165104795,244.48892813,0.000218,2]
[385970028,1758165167250,150.0,0.00021321,2]
[385970029,1758165243320,150.0,0.00021318,2]
[385970030,1758165287244,233.71930532,0.000218,2]
[385970036,1758165395342,150.0,0.00021476,2]
[385970037,1758165470453,150.0,0.00021476,2]
[385970053,1758165986579,177.0,0.0002316,2]
[385970102,1758166232385,-308.5524636,0.00023843,2]
[385970104,1758166232394,-158.69187059,0.00023906,2]
[385970107,1758166232492,-25.64846641,0.00023906,2]
[385970109,1758166232502,-293.6648389,0.00023992,2]
[385970111,1758166232513,-91.80023086,0.00023992,2]
[385970114,1758166232522,-1348.19976914,0.0002413,5]
[385970156,1758166238110,-231.00972111,0.0002413,5]
[385970157,1758166238119,-160.0,0.00024288,3]
[385970158,1758166238128,-87.80035823,0.00024734,3]
[385970159,1758166238162,-162.25964177,0.00024734,3]
[385970160,1758166238171,-488.59109735,0.00024734,3]
[385970161,1758166238180,-480.0,0.00024734,3]
[385970162,1758166238189,-468.27897098,0.00024735,3]
[385970163,1758166238201,-26.04476283,0.00024735,3]
[385970165,1758166238210,-410.0,0.0002477,2]
[385970166,1758166238219,-150.0,0.00024786,2]
[385970167,1758166238228,-726.24070569,0.00024786,2]
[385970168,1758166238238,-300.0,0.00024866,2]
[385970169,1758166238247,-491.61,0.00024867,3]
[385970170,1758166238256,-480.0,0.00024867,3]
[385970171,1758166238265,-336.684887,0.00024867,3]
[385970173,1758166238275,-503.67993404,0.00024867,3]
[385970174,1758166238285,-480.0,0.00024867,3]
[385970175,1758166238294,-508.71087919,0.00024867,3]
[385970176,1758166238303,-480.0,0.00024867,3]
[385970177,1758166238312,-480.0,0.00024867,3]
[385970178,1758166238322,-480.0,0.00024867,3]
[385970179,1758166238330,-480.0,0.00024867,3]
[385970180,1758166238340,-488.84073829,0.00024867,3]
[385970181,1758166238349,-503.46696676,0.00024868,3]
[385970182,1758166238359,-492.22743999,0.00024868,3]
[385970183,1758166238368,-507.95980733,0.00024868,3]
[385970184,1758166238377,-500.60801824,0.00024868,3]
[385970185,1758166238386,-534.03615264,0.00024868,3]
[385970186,1758166238395,-492.37319692,0.00024868,3]
[385970187,1758166238404,-487.18449013,0.00024868,3]
[385970188,1758166238413,-628.59789986,0.00024868,3]
[385970189,1758166238423,-488.38428205,0.00024868,3]
[385970190,1758166238433,-492.96,0.00024868,3]
[385970191,1758166238442,-480.0,0.00024868,3]
[385970192,1758166238451,-220.30908557,0.00024868,3]
[385970193,1758166238460,-622.66911135,0.00024868,3]
[385970194,1758166238469,-480.0,0.00024868,3]
[385970195,1758166238478,-3726.87,0.00024869,3]
[385970196,1758166238487,-480.0,0.00024869,3]
[385970197,1758166238497,-160.0,0.00024877,4]
[385970198,1758166238603,-1837.0,0.00024907,2]
[385970199,1758166238614,-554.48460962,0.00024908,2]
[385970200,1758166238623,-508.48240075,0.00024915,3]
[385970201,1758166238632,-480.0,0.00024915,3]
[385970202,1758166238641,-480.0,0.00024915,3]
[385970203,1758166238650,-154.0509261,0.00024915,3]
[385970204,1758166238660,-480.0,0.00024915,3]
[385970205,1758166238669,-513.02566571,0.00024915,3]
[385970206,1758166238678,-504.87393318,0.00024915,3]
[385970207,1758166238687,-480.0,0.00024915,3]
[385970208,1758166238697,-480.0,0.00024915,3]
[385970209,1758166238707,-160.0,0.00024959,2]
[385970210,1758166238716,-173.0,0.00024961,2]
[385970211,1758166238725,-417.15472785,0.00025,10]
[385970212,1758166238736,-203.54508482,0.00025008,3]
[385970213,1758166238746,-284.42310236,0.00025008,3]
[385970214,1758166238755,-471.6214126,0.00025008,3]
[385970215,1758166238764,-233.58319196,0.00025008,3]
[385970216,1758166238774,-470.13922001,0.00025008,3]
[385970217,1758166238784,-443.61258695,0.00025008,3]
[385970218,1758166238793,-480.0,0.00025008,3]
[385970219,1758166238803,-480.0,0.00025008,3]
[385970220,1758166238812,-200.0,0.00025008,3]
[385970221,1758166238823,-480.0,0.00025008,3]
[385970222,1758166238833,-1467.0,0.00025008,3]
[385970223,1758166238843,-487.58082407,0.00025008,3]
[385970224,1758166238852,-480.0,0.00025008,3]
[385970225,1758166238861,-500.0,0.00025041,2]
[385970226,1758166238871,-500.0,0.00025058,2]
[385970227,1758166238879,-500.0,0.00025058,2]
[385970228,1758166238889,-521.23963289,0.00025058,2]
[385970229,1758166238899,-500.0,0.00025073,2]
[385970230,1758166238908,-500.0,0.00025073,2]
[385970231,1758166238918,-491.61,0.00025141,3]
[385970232,1758166238928,-484.37907515,0.00025141,3]
[385970233,1758166238938,-492.96,0.00025142,3]
[385970234,1758166238948,-480.0,0.00025142,3]
[385970235,1758166238957,-3726.87,0.00025143,3]
[385970236,1758166238966,-211.52,0.00025143,3]
[385970237,1758166238975,-160.0,0.00025167,2]
[385970238,1758166238984,-400.86239142,0.00025189,3]
[385970239,1758166238993,-480.0,0.00025189,3]
[385970240,1758166239003,-480.0,0.00025189,3]
[385970241,1758166239013,-480.0,0.00025189,3]
[385970242,1758166239023,-287.93465125,0.00025212,2]
[385970243,1758166239037,-250.0,0.00025212,2]
[385970244,1758166239047,-500.0,0.00025213,10]
[385970245,1758166239058,-524.93304758,0.00025213,10]
[385970246,1758166239068,-480.0,0.00025282,3]
[385970247,1758166239077,-585.46385687,0.00025282,3]
[385970248,1758166239086,-200.0,0.00025282,3]
[385970249,1758166239095,-480.0,0.00025282,3]
[385970250,1758166239105,-1467.0,0.00025282,3]
[385970251,1758166239114,-480.0,0.00025282,3]
[385970252,1758166239124,-500.0,0.00025347,2]
[385970253,1758166239134,-300.0,0.00025363,20]
[385970254,1758166239144,-300.0,0.00025363,20]
[385970255,1758166239153,-300.0,0.00025363,20]
[385970256,1758166239162,-300.0,0.00025363,20]
[385970257,1758166239171,-300.0,0.00025363,20]
[385970258,1758166239180,-300.0,0.00025397,20]
[385970259,1758166239189,-300.0,0.00025397,20]
[385970260,1758166239203,-491.61,0.00025415,3]
[385970261,1758166239212,-492.96,0.00025416,3]
[385970262,1758166239221,-480.0,0.00025416,3]
[385970263,1758166239230,-3726.87,0.00025417,3]
[385970264,1758166239239,-382.86,0.00025463,3]
[385970265,1758166239249,-480.0,0.00025463,3]
[385970266,1758166239260,-160.0,0.00025466,5]
[385970267,1758166239269,-480.0,0.00025556,3]
[385970268,1758166239279,-200.0,0.00025556,3]
[385970269,1758166239288,-491.25559302,0.00025556,3]
[385970270,1758166239297,-1176.63570796,0.00025556,3]
[385970278,1758166240011,-300.0,0.00025363,20]
[385970279,1758166240022,-300.0,0.00025363,20]
[385970280,1758166240034,-300.0,0.00025363,20]
[385970281,1758166240044,-290.36429204,0.00025556,3]
[385970282,1758166240055,-407.23490467,0.00025556,3]
[385970283,1758166240069,-72.76509533,0.00025556,3]
[385970284,1758166240079,-1020.3870454,0.00025589,2]
[385970285,1758166240089,-1000.0,0.00025621,2]
[385970286,1758166240102,-251.60077061,0.00025621,2]
[385970287,1758166240112,-491.61,0.00025689,3]
[385970288,1758166240122,-492.96,0.0002569,3]
[385970289,1758166240131,-480.0,0.0002569,3]
[385970290,1758166240140,-3726.87,0.00025691,3]
[385970291,1758166240150,-2744.26175362,0.00025699,2]
[385970292,1758166240159,-480.0,0.00025737,3]
[385970293,1758166240168,-504.60371469,0.00025773,2]
[385970294,1758166240177,-500.0,0.00025773,2]
[385970295,1758166240187,-502.67286726,0.00025773,2]
[385970296,1758166240196,-500.0,0.00025773,2]
[385970297,1758166240205,-500.0,0.00025773,2]
[385970298,1758166240215,-503.37960697,0.00025773,2]
[385970299,1758166240224,-502.74382653,0.00025773,2]
[385970300,1758166240234,-500.0,0.00025773,2]
[385970301,1758166240244,-504.4521168,0.00025773,2]
[385970302,1758166240254,-503.19989766,0.00025773,2]
[385970303,1758166240264,-506.76829705,0.00025773,2]
[385970304,1758166240274,-508.95331759,0.00025773,2]
[385970305,1758166240283,-505.59102816,0.00025773,2]
[385970306,1758166240292,-170.56849882,0.00025773,2]
[385970307,1758166240304,-333.53456122,0.00025773,2]
[385970308,1758166240314,-512.42877227,0.00025773,2]
[385970309,1758166240325,-28.99183907,0.00025773,2]
[385970324,1758166246048,-471.00816093,0.00025773,2]
[385970325,1758166246060,-1736.85,0.00025789,2]
[385970326,1758166246072,-620.26613807,0.0002579,2]
[385970327,1758166246157,-152.75,0.0002578,3]
[385970328,1758166246168,-4918.33890628,0.0002579,2]
[385970329,1758166246212,-397.65649073,0.0002579,2]
[385970335,1758166527595,-239.46123868,0.00024866,2]
[385970336,1758166530427,-60.53876132,0.00024866,2]
[385970337,1758166530450,-105.45726138,0.00024867,3]
[385970338,1758166532648,-374.54273862,0.00024867,3]
[385970339,1758166532672,-80.94504505,0.00024867,3]
[385970340,1758166555119,-184.340337,0.00023911,2]
[385970341,1758166555142,-68.44310826,0.0002485,2]
[385970342,1758166560084,-176.51599405,0.0002485,2]
[385970343,1758166563292,-165.04089769,0.0002485,2]
[385970344,1758166563318,-26.08669227,0.00024867,3]
[385970345,1758166565838,-161.13380853,0.00024866,2]
[385970347,1758166569660,-138.86619147,0.00024866,2]
[385970348,1758166569686,-199.20826268,0.00024867,3]
[385970349,1758166569711,-94.68097334,0.00024867,3]
[385970350,1758166573026,-81.45419898,0.00024867,3]
[385970351,1758166573050,-121.98171492,0.00024867,3]
[385970352,1758166578790,-309.12184833,0.00024867,3]
[385970353,1758166582104,-48.89643675,0.00024867,3]
[385970354,1758166582129,-142.23115321,0.00024867,3]
[385970355,1758166610234,-190.50204287,0.00024867,3]
[385970356,1758166615858,-147.26680392,0.00024867,3]
[385970357,1758166615882,-23.56038462,0.00024867,3]
[385970358,1758166619270,-376.13947647,0.00024867,3]
[385970359,1758166622588,-104.30458168,0.00024867,3]
[385970360,1758166622613,-145.37049034,0.00024867,3]
[385970361,1758166646079,-157.60099695,0.00024867,3]
[385970362,1758166649532,-154.2180119,0.00024867,3]
[385970363,1758166652329,-22.81050081,0.00024867,3]
[385970364,1758166652353,-294.65274991,0.00024867,3]